bitfinex/quotes_SOLUSD_20251106
["timestamp","ask_amount","ask_price","bid_price","bid_amount"]
[1762396137588,0.66,160.86,160.82,2.83239136]
[1762396138113,7.26,160.87,160.82,2.83239136]
[1762396138299,0.66,160.86,160.83,0.69]
[1762396138904,0.66,160.86,160.83,6.21774544]
[1762396139213,0.66,160.86,160.82,6.21800201]
[1762396140413,0.66,160.86,160.82,6.90800201]
[1762396142415,6.87662439,160.86,160.82,6.90800201]
[1762396142610,2.14239136,160.84,160.77,15.54940104]
[1762396142810,7.26,160.83,160.77,17.6917924]
[1762396143015,7.26,160.88,160.82,2.14239136]
[1762396143187,0.2,160.89,160.87,2.14239136]
[1762396143391,0.2,160.89,160.88,2.14239136]
[1762396143886,0.2,160.89,160.88,2.83239136]
[1762396144290,0.2,160.89,160.88,9.04820438]
[1762396144702,0.2,160.89,160.88,11.19059574]
[1762396145012,0.2,160.89,160.88,20.97942343]
[1762396145417,0.2,160.89,160.88,18.83703207]
[1762396145820,1e-08,160.89,160.88,20.97942343]
[1762396146500,1e-08,160.9,160.89,30.38082769]
[1762396146700,0.66,160.98,160.92,20.592]
[1762396146902,7.26,160.97,160.94,2.14239136]
[1762396147397,7.26,160.97,160.94,0.69]
[1762396148602,7.26,160.97,160.95,6.21310966]
[1762396148804,7.26,160.97,160.95,8.35550102]
[1762396148998,7.26,160.97,160.96,2.83239136]
[1762396149418,0.2,161.02,160.96,2.83239136]
[1762396149618,0.2,161.02,160.99,20.592]
[1762396149809,0.2,161.02,161.0,0.69]
[1762396150807,0.2,161.02,161.01,6.21079436]
[1762396151337,0.2,161.02,161.01,9.04318572]
[1762396152322,0.2,161.02,161.01,11.76920491]
[1762396152708,0.2,161.02,161.01,12.45920491]
[1762396153698,0.2,161.02,160.99,26.80323802]
[1762396153900,0.2,161.02,160.99,27.49323802]
[1762396154123,0.2,161.02,160.99,32.36164857]
[1762396154804,0.2,161.02,160.99,33.05164857]
[1762396155004,0.2,161.02,161.0,5.55841055]
[1762396155221,0.2,161.02,160.99,48.5805634]
[1762396156023,0.2,161.02,161.0,5.55841055]
[1762396156603,0.66,161.01,160.94,16.22288342]
[1762396156806,0.66,161.01,160.94,42.37329397]
[1762396157028,0.66,161.01,160.94,5.55841055]
[1762396157405,0.66,161.01,160.93,6.90379169]
[1762396157406,5.55841055,160.99,160.93,6.90379169]
[1762396157816,0.66,160.98,160.93,6.90379169]
[1762396158020,7.24,160.97,160.93,6.90379169]
[1762396158218,7.9,160.97,160.93,6.90379169]
[1762396158421,7.24,160.97,160.93,6.21379169]
[1762396159029,7.9,160.97,160.93,6.90379169]
[1762396160123,7.9,160.97,160.93,6.21379169]
[1762396160931,7.24,160.97,160.94,0.69]
[1762396161622,0.66,160.96,160.92,7.81682792]
[1762396162116,0.66,160.96,160.92,8.51682792]
[1762396163820,0.66,160.96,160.92,30.26666814]
[1762396164635,0.66,160.96,160.87,9.78882769]
[1762396164939,8.47682792,160.96,160.88,14.73264094]
[1762396165110,14.68958244,160.96,160.87,0.7]
[1762396165312,14.68958244,160.96,160.87,14.03302733]
[1762396165313,0.72,160.95,160.87,14.03302733]
[1762396165510,8.53682792,160.95,160.88,0.7]
[1762396165832,0.72,160.95,160.88,0.7]
[1762396166022,0.72,160.94,160.88,0.7]
[1762396166422,0.72,160.94,160.89,6.21542668]
[1762396166822,0.72,160.94,160.89,6.91542668]
[1762396167353,7.24,160.93,160.89,6.91542668]
[1762396169131,7.24,160.93,160.9,0.7]
[1762396170145,0.72,160.99,160.92,7.81682792]
[1762396170328,7.24,160.96,160.91,7.81682792]
[1762396170519,7.24,160.96,160.92,6.21426795]
[1762396170715,7.24,160.96,160.92,6.91426795]
[1762396172338,7.24,160.96,160.92,10.25383701]
[1762396173043,7.24,160.96,160.92,9.55383701]
[1762396173217,7.24,160.96,160.93,0.7]
[1762396173722,7.96,160.96,160.92,9.55383701]
[1762396174050,7.24,160.96,160.93,0.7]
[1762396174217,9.55119932,160.99,160.93,0.7]
[1762396174417,7.24,160.96,160.92,6.21426795]
[1762396174942,7.96,160.96,160.92,6.21426795]
[1762396175241,0.72,160.95,160.91,6.21465415]
[1762396175438,0.72,160.95,160.91,6.91465415]
[1762396179018,0.72,160.95,160.91,10.25422321]
[1762396179220,0.72,160.95,160.91,25.79085859]
[1762396179434,0.72,160.95,160.91,22.42128953]
[1762396179630,13.45272405,160.96,160.9,6.21504039]
[1762396179827,7.93,160.96,160.92,0.67]
[1762396180433,7.24,160.96,160.92,0.67]
[1762396180621,0.69,160.95,160.9,6.21504039]
[1762396180825,4.02956906,160.95,160.9,6.21504039]
[1762396181041,0.69,160.95,160.9,6.88504039]
[1762396181240,0.69,160.94,160.9,6.88504039]
[1762396182748,0.69,160.94,160.9,22.42264138]
[1762396185449,0.69,160.94,160.87,9.78882769]
[1762396185450,7.24,160.96,160.92,9.55383701]
[1762396185639,7.24,160.96,160.92,25.0895069]
[1762396185830,7.24,160.96,160.93,0.67]
[1762396187548,7.24,160.96,160.93,6.88349697]
[1762396187748,7.93,160.96,160.93,6.21349697]
[1762396187954,7.93,160.96,160.93,6.88349697]
[1762396188150,7.93,160.96,160.93,6.21349697]
[1762396188350,0.69,160.95,160.9,6.21490188]
[1762396188872,0.69,160.95,160.9,6.88490188]
[1762396189754,4.02956906,160.95,160.9,6.88490188]
[1762396189959,0.69,160.94,160.9,6.88490188]
[1762396190137,7.24,160.93,160.9,6.88490188]
[1762396190335,7.24,160.93,160.86,36.12766989]
[1762396190336,3.33956906,160.92,160.86,6.8864847]
[1762396190658,4.02956906,160.92,160.86,6.8864847]
[1762396190854,0.69,160.92,160.86,6.8864847]
[1762396191043,0.69,160.92,160.87,0.67]
[1762396191456,0.69,160.92,160.88,6.21581302]
[1762396191640,10.57956906,160.93,160.88,6.21581302]
[1762396191840,0.69,160.92,160.88,6.21581302]
[1762396192362,4.02956906,160.92,160.87,6.21606027]
[1762396192852,0.66,160.91,160.87,6.88606027]
[1762396193154,7.24,160.9,160.87,6.88606027]
[1762396196966,7.24,160.9,160.88,0.67]
[1762396197554,7.24,160.9,160.87,6.21606027]
[1762396197753,7.24,160.9,160.87,6.88606027]
[1762396198267,7.24,160.9,160.88,0.67]
[1762396199265,7.9,160.9,160.87,6.88606027]
[1762396199868,7.24,160.9,160.87,6.88606027]
[1762396200076,0.66,160.89,160.85,6.21695432]
[1762396200375,104.7,160.92,160.87,3.33956906]
[1762396200542,7.24,160.91,160.86,21.262]
[1762396200742,7.24,160.91,160.87,4.00956906]
[1762396201056,7.24,160.91,160.87,0.67]
[1762396201392,7.9,160.91,160.87,0.67]
[1762396201668,7.24,160.91,160.87,0.67]
[1762396201873,7.9,160.91,160.87,0.67]
[1762396202041,7.24,160.91,160.88,6.21581302]
[1762396202484,7.24,160.91,160.88,6.88581302]
[1762396202642,7.9,160.91,160.87,6.21613938]
[1762396202849,7.24,160.91,160.88,0.67]
[1762396203066,7.9,160.91,160.87,0.67]
[1762396203451,0.66,160.9,160.86,6.21645722]
[1762396203779,0.66,160.9,160.82,9.78882769]
[1762396203780,3.33956906,160.89,160.8,3.24814356]
[1762396204079,7.24,160.88,160.83,20.592]
[1762396204257,14.11589303,160.88,160.83,20.592]
[1762396204568,0.66,160.87,160.83,20.592]
[1762396205370,1.43673522,160.93,160.85,3.33956906]
[1762396205544,123.37936863,160.97,160.9,3.33956906]
[1762396205545,0.66,160.96,160.9,3.33956906]
[1762396205872,0.66,160.96,160.91,3.33956906]
[1762396206181,7.24,160.95,160.93,9.55345087]
[1762396206347,7.24,160.94,160.93,9.55345087]
[1762396206547,0.66,160.98,160.93,10.22345087]
[1762396206548,27.46395786,160.98,160.93,10.22345087]
[1762396206762,3.33956906,160.94,160.87,4.00956906]
[1762396206962,10.57956906,160.95,160.88,10.22529279]
[1762396207166,7.24,160.95,160.9,3.33956906]
[1762396207351,7.24,160.94,160.9,3.33956906]
[1762396207653,7.9,160.94,160.89,4.00956906]
[1762396207954,7.24,160.94,160.91,3.33956906]
[1762396208149,7.24,160.94,160.93,6.21388181]
[1762396208545,7.24,160.94,160.9,4.00956906]
[1762396208959,7.9,160.94,160.9,4.00956906]
[1762396209164,0.66,160.93,160.89,6.21504848]
[1762396209356,0.66,160.93,160.84,0.67]
[1762396209357,3.33956906,160.91,160.84,0.67]
[1762396209555,10.57956906,160.9,160.84,4.00956906]
[1762396209957,11.23956906,160.9,160.84,4.00956906]
[1762396210156,0.77673522,160.93,160.84,4.00956906]
[1762396210157,0.66,160.93,160.87,3.33956906]
[1762396210381,7.24,160.92,160.88,6.21581302]
[1762396210755,0.66,160.91,160.87,6.88610344]
[1762396211049,0.66,160.91,160.84,20.592]
[1762396211250,0.66,160.91,160.85,4.00956906]
[1762396211469,3.99956906,160.91,160.85,0.67]
[1762396211670,7.24,160.92,160.86,4.00956906]
[1762396211951,3.99956906,160.91,160.84,45.69231777]
[1762396212168,3.33956906,160.9,160.84,6.21735155]
[1762396212370,10.21498308,160.9,160.84,6.21735155]
[1762396212569,0.66,160.89,160.84,6.21735155]
[1762396212770,7.24,160.88,160.82,4.00956906]
[1762396212953,7.24,160.88,160.83,4.00956906]
[1762396213354,7.9,160.88,160.83,4.00956906]
[1762396213657,7.24,160.88,160.84,4.00956906]
[1762396213864,7.26,160.87,160.85,3.33956906]
[1762396214050,7.26,160.87,160.85,4.00956906]
[1762396214252,7.26,160.87,160.86,6.21658585]
[1762396215383,7.26,160.87,160.86,10.22615491]
[1762396217066,7.26,160.87,160.86,6.88658585]
[1762396218974,7.26,160.87,160.86,10.22615491]
[1762396219174,7.24,160.87,160.86,10.22615491]
[1762396219366,3.53956906,161.04,160.86,46.35961953]
[1762396219367,0.66,160.95,160.86,46.35961953]
[1762396219683,0.66,160.95,160.88,3.33956906]
[1762396219684,7.24,160.94,160.88,3.33956906]
[1762396219990,3.33956906,160.93,160.86,26.80858585]
[1762396220167,3.33956906,160.92,160.86,6.21658585]
[1762396220479,7.24,160.91,160.85,24.60156906]
[1762396220700,3.33956906,160.89,160.8,10.45882769]
[1762396220989,3.33956906,160.89,160.78,21.92596778]
[1762396220990,3.33956906,160.85,160.79,6.21922284]
[1762396221156,10.59956906,160.84,160.79,6.21922284]
[1762396221356,16.81701527,160.84,160.78,22.43887672]
[1762396221588,17.47701527,160.84,160.78,22.43887672]
[1762396221888,17.47701527,160.84,160.78,25.77844578]
[1762396222594,14.13744621,160.84,160.78,28.0144946]
[1762396223684,7.26,160.84,160.82,5.57561788]
[1762396224086,7.26,160.84,160.82,6.24561788]
[1762396224586,7.26,160.84,160.8,0.67]
[1762396224791,7.26,160.84,160.8,6.24561788]
[1762396224958,7.26,160.84,160.81,5.57561788]
[1762396225158,7.26,160.84,160.81,6.24561788]
[1762396225653,7.26,160.84,160.82,11.79374995]
[1762396225877,7.26,160.84,160.81,0.67]
[1762396226081,7.26,160.84,160.81,6.24561788]
[1762396226399,7.26,160.83,160.82,0.67]
[1762396226559,7.26,160.84,160.82,0.67]
[1762396227369,7.26,160.84,160.83,6.21774544]
[1762396227582,7.26,160.84,160.83,5.57561788]
[1762396227785,7.28,160.85,160.83,6.24561788]
[1762396227976,7.28,160.85,160.84,5.57561788]
[1762396228173,7.28,160.85,160.84,6.24561788]
[1762396228677,7.28,160.86,160.84,6.24561788]
[1762396228876,7.28,160.86,160.85,6.88697233]
[1762396229868,7.28,160.86,160.85,0.67]
[1762396230082,7.96,160.86,160.82,5.57561788]
[1762396230270,7.28,160.86,160.84,5.57561788]
[1762396230668,7.28,160.86,160.84,0.67]
[1762396230870,7.28,160.86,160.84,12.4627881]
[1762396231299,7.28,160.86,160.83,6.21762426]
[1762396231488,7.28,160.86,160.84,5.57561788]
[1762396231983,7.28,160.86,160.84,6.24561788]
[1762396232387,7.28,160.86,160.84,0.67]
[1762396233292,7.28,160.86,160.84,6.88730401]
[1762396233796,7.28,160.86,160.83,5.57561788]
[1762396233980,7.26,160.85,160.83,12.46313318]
[1762396234377,7.26,160.85,160.84,5.57561788]
[1762396234597,7.26,160.85,160.84,6.24561788]
[1762396235097,7.26,160.85,160.84,12.46297674]
[1762396235301,7.26,160.85,160.84,0.67]
[1762396235482,7.26,160.85,160.84,6.24561788]
[1762396235874,7.26,160.88,160.84,6.24561788]
[1762396236076,7.26,160.88,160.85,6.28561788]
[1762396236269,7.26,160.88,160.87,5.57561788]
[1762396236693,7.26,160.88,160.86,6.28561788]
[1762396236992,7.96,160.88,160.84,5.57561788]
[1762396237195,7.96,160.88,160.84,12.50264359]
[1762396237382,7.26,160.88,160.84,12.50264359]
[1762396237983,7.26,160.88,160.85,0.71]
[1762396239391,7.26,160.88,160.84,6.92702571]
[1762396239595,7.26,160.88,160.85,0.71]
[1762396240096,7.26,160.88,160.85,6.9268326]
[1762396240402,7.26,160.88,160.85,12.50245048]
[1762396240698,7.26,160.88,160.86,6.28561788]
[1762396240878,7.26,160.88,160.86,5.57561788]
[1762396241078,7.26,160.88,160.87,0.71]
[1762396241595,7.26,160.88,160.87,6.28561788]
[1762396241778,7.26,160.88,160.87,0.71]
[1762396241977,7.26,160.88,160.87,6.92619941]
[1762396242687,7.26,160.88,160.87,6.21619941]
[1762396243999,7.26,160.88,160.87,6.92619941]
[1762396244195,7.26,160.88,160.87,12.50181729]
[1762396244374,7.26,160.88,160.87,9.06480427]
[1762396244571,2.13860486,160.94,160.87,9.06480427]
[1762396244774,0.7,160.99,160.93,2.13860486]
[1762396244999,0.2,161.02,160.98,2.13860486]
[1762396245000,0.9,161.02,160.98,2.13860486]
[1762396245303,7.26,161.01,160.98,2.13860486]
[1762396245595,7.96,161.01,160.95,2.13860486]
[1762396245796,0.7,161.0,160.95,2.13860486]
[1762396246188,0.7,161.0,160.95,8.35135435]
[1762396246405,6.91118115,161.0,160.95,8.35135435]
[1762396246992,0.7,160.99,160.95,8.35135435]
[1762396247197,7.26,160.98,160.95,8.35135435]
[1762396248494,7.26,160.98,160.96,2.13860486]
[1762396250399,7.26,160.98,160.96,5.56334833]
[1762396251205,7.26,160.98,160.97,6.27334833]
[1762396251913,0.2,161.02,160.97,6.27334833]
[1762396252098,7.26,161.0,160.99,5.56334833]
[1762396252610,7.94,161.0,160.96,6.21268315]
[1762396252911,7.94,161.0,160.96,12.44603148]
[1762396254512,7.26,161.0,160.97,0.67]
[1762396254682,7.26,161.0,160.98,5.56334833]
[1762396254881,7.26,161.0,160.97,6.23334833]
[1762396256398,7.26,161.0,160.98,6.21195179]
[1762396257624,0.2,161.02,160.99,6.23334833]
[1762396257838,0.2,161.02,161.01,5.56334833]
[1762396258326,0.2,161.02,161.01,12.44414269]
[1762396259112,0.2,161.02,161.01,22.23297038]
[1762396259424,0.2,161.02,161.01,12.44414269]
[1762396260227,0.2,161.02,161.01,6.88079436]
[1762396260425,0.2,161.02,161.01,12.44414269]
[1762396260622,0.2,161.02,161.01,6.21079436]
[1762396260931,0.2,161.02,161.01,5.56334833]
[1762396261128,0.2,161.02,161.01,6.23334833]
[1762396262234,0.2,161.02,161.01,16.02217602]
[1762396262527,0.2,161.02,161.01,22.23297038]
[1762396263216,0.2,161.09,161.03,9.78882769]
[1762396263420,0.2,161.09,161.08,5.56334833]
[1762396263806,0.2,161.09,161.08,6.23334833]
[1762396264616,0.2,161.09,161.08,12.44144368]
[1762396265420,0.2,161.09,161.08,6.87809535]
[1762396265622,0.2,161.09,161.08,5.56334833]
[1762396266019,0.2,161.09,161.08,16.02217602]
[1762396266326,0.2,161.09,161.08,36.61417602]
[1762396266529,1e-08,161.09,161.08,22.23027137]
[1762396266730,1e-08,161.1,161.09,9.78882769]
[1762396266908,1e-08,161.1,161.09,28.84552435]
[1762396267430,0.2,161.13,161.12,30.38082769]
[1762396267615,0.2,161.13,161.12,43.20417602]
[1762396267930,0.2,161.13,161.12,43.87417602]
[1762396268639,0.2,161.15,161.13,9.78882769]
[1762396268962,1e-08,161.18,161.17,9.78882769]
[1762396269235,0.2,161.19,161.18,9.78882769]
[1762396269236,1e-08,161.19,161.18,9.78882769]
[1762396269409,1e-08,161.19,161.18,16.33423286]
[1762396270009,1e-08,161.19,161.18,16.02217602]
[1762396270723,1e-08,161.19,161.18,22.22641972]
[1762396271036,1e-08,161.19,161.18,33.02959203]
[1762396271211,1e-08,161.19,161.18,42.81841972]
[1762396272235,1e-08,161.19,161.18,27.78976805]
[1762396272409,0.2,161.21,161.2,20.592]
[1762396272605,0.2,161.21,161.2,22.61217602]
[1762396272810,0.2,161.21,161.2,29.48564996]
[1762396273411,0.2,161.21,161.2,50.07764996]
[1762396273626,0.2,161.21,161.2,5.56334833]
[1762396274326,0.2,161.21,161.18,0.67]
[1762396274526,0.2,161.21,161.2,5.56334833]
[1762396274838,0.2,161.21,161.2,11.76682227]
[1762396276026,0.2,161.21,161.2,5.56334833]
[1762396276742,0.2,161.21,161.19,11.76720713]
[1762396277830,0.2,161.21,161.19,5.56334833]
[1762396278135,0.2,161.21,161.2,5.56334833]
[1762396278935,0.2,161.21,161.2,11.76682227]
[1762396279441,0.2,161.21,161.2,6.87347394]
[1762396279634,0.2,161.21,161.2,12.43682227]
[1762396282333,0.2,161.21,161.2,14.66194491]
[1762396282836,1e-08,161.21,161.2,24.4507726]
[1762396284228,1e-08,161.21,161.2,45.0427726]
[1762396284451,1e-08,161.21,161.2,20.592]
[1762396284617,1e-08,161.21,161.2,23.91897523]
[1762396284822,1e-08,161.21,161.2,20.592]
[1762396285022,1e-08,161.21,161.2,23.91897523]
[1762396285222,1e-08,161.21,161.2,30.12244917]
[1762396285949,1e-08,161.21,161.2,26.79547394]
[1762396288138,1e-08,161.21,161.2,30.12244917]
[1762396288341,1e-08,161.21,161.19,0.7]
[1762396288656,1e-08,161.21,161.2,3.32697523]
[1762396289336,1e-08,161.21,161.2,9.53044917]
[1762396289662,1e-08,161.21,161.2,23.34625209]
[1762396292133,0.2,161.24,161.23,30.38082769]
[1762396292333,0.91,161.24,161.23,45.40357695]
[1762396292523,0.91,161.24,161.23,35.61474926]
[1762396292730,0.91,161.24,161.23,38.16357695]
[1762396293334,0.91,161.24,161.23,44.36589661]
[1762396295247,0.91,161.24,161.23,34.57706892]
[1762396295457,0.91,161.24,161.23,26.79431966]
[1762396297769,0.91,161.24,161.21,7.78274926]
[1762396298069,8.69274926,161.24,161.19,6.90373499]
[1762396298235,8.69274926,161.24,161.19,6.20373499]
[1762396298435,8.69274926,161.24,161.2,0.7]
[1762396300037,8.69274926,161.24,161.2,6.90335222]
[1762396300239,14.89481786,161.24,161.2,6.90335222]
[1762396301335,14.89481786,161.24,161.18,20.592]
[1762396301541,14.89481786,161.24,161.19,0.7]
[1762396301542,7.78274926,161.22,161.19,0.7]
[1762396302463,7.78274926,161.22,161.19,6.90371028]
[1762396303336,6.20237903,161.23,161.19,6.90371028]
[1762396303554,14.89472783,161.24,161.19,6.20371028]
[1762396303759,8.15,161.24,161.2,0.7]
[1762396304144,22.13481084,161.24,161.2,0.7]
[1762396304855,8.15,161.24,161.2,6.9033905]
[1762396305161,0.2,161.24,161.23,28.37474926]
[1762396305550,1e-08,161.24,161.23,38.86357695]
[1762396305953,1e-08,161.25,161.24,15.99076269]
[1762396306163,1e-08,161.25,161.24,24.47351195]
[1762396309250,1e-08,161.25,161.24,32.25626121]
[1762396309766,1e-08,161.25,161.24,24.47351195]
[1762396310368,1e-08,161.25,161.24,23.77351195]
[1762396310750,1e-08,161.25,161.24,31.01351195]
[1762396311153,1e-08,161.25,161.24,23.77351195]
[1762396311352,0.70000001,161.25,161.24,41.81668426]
[1762396311565,0.70000001,161.25,161.24,34.57668426]
[1762396311765,0.70000001,161.25,161.24,44.36551195]
[1762396311766,1e-08,161.25,161.24,44.36551195]
[1762396312073,1e-08,161.25,161.24,45.04551195]
[1762396313371,1e-08,161.25,161.24,52.28551195]
[1762396315568,0.66000001,161.25,161.24,51.60551195]
[1762396315770,1e-08,161.25,161.24,51.60551195]
[1762396316070,1e-08,161.25,161.24,44.36551195]
[1762396317173,0.66000001,161.25,161.24,34.57668426]
[1762396317577,1e-08,161.25,161.24,34.57668426]
[1762396317870,0.66000001,161.25,161.24,26.793935]
[1762396319480,0.66000001,161.25,161.22,6.20265084]
[1762396319773,0.66000001,161.25,161.19,13.98660806]
[1762396319963,0.66000001,161.25,161.19,34.57860806]
[1762396320163,0.66000001,161.25,161.19,50.08825506]
[1762396320361,0.66000001,161.25,161.2,7.78274926]
[1762396320576,7.78274926,161.24,161.15,9.78882769]
[1762396320749,0.66000001,161.25,161.05,3.24021749]
[1762396320750,7.78274926,161.2,161.12,7.78274926]
[1762396320951,0.66,161.19,161.14,7.78274926]
[1762396321175,0.66,161.19,161.12,28.96272068]
[1762396321377,0.66,161.19,161.13,7.78274926]
[1762396321552,0.66,161.19,161.15,26.79716386]
[1762396321751,7.78274926,161.16,161.09,13.99045923]
[1762396321954,14.10402479,161.19,161.09,21.7269849]
[1762396321955,7.78274926,161.15,161.09,21.7269849]
[1762396322359,0.66,161.14,161.09,21.7269849]
[1762396322886,0.66,161.14,161.09,6.20770997]
[1762396322887,8.44274926,161.14,161.09,6.20770997]
[1762396323052,0.66,161.14,161.09,6.20770997]
[1762396323260,0.66,161.2,161.13,7.78274926]
[1762396323481,1e-08,161.25,161.19,7.78274926]
[1762396323772,1e-08,161.25,161.2,6.20347394]
[1762396323773,0.66,161.24,161.2,6.20347394]
[1762396324178,1e-08,161.25,161.22,7.78274926]
[1762396324380,0.66000001,161.25,161.22,7.78274926]
[1762396325980,0.66000001,161.25,161.23,6.20231966]
[1762396326284,0.66000001,161.25,161.23,13.98506892]
[1762396326505,0.66000001,161.25,161.23,6.20231966]
[1762396327791,0.66000001,161.25,161.21,6.20278119]
[1762396328797,8.44274927,161.25,161.18,7.78274926]
[1762396329262,0.66,161.24,161.18,7.78274926]
[1762396330093,1e-08,161.25,161.23,7.78274926]
[1762396330262,1e-08,161.25,161.23,28.37474926]
[1762396331881,1e-08,161.25,161.24,7.78274926]
[1762396332072,1e-08,161.25,161.24,13.98468426]
[1762396332266,1e-08,161.25,161.24,14.66468426]
[1762396332896,1e-08,161.25,161.24,13.98468426]
[1762396333096,1e-08,161.25,161.24,6.201935]
[1762396335996,1e-08,161.25,161.24,24.45351195]
[1762396338199,1e-08,161.29,161.28,9.78882769]
[1762396338405,1e-08,161.29,161.28,24.81157695]
[1762396338612,1e-08,161.29,161.28,25.49157695]
[1762396340113,1e-08,161.29,161.28,31.69197377]
[1762396341505,1e-08,161.29,161.28,23.90922451]
[1762396341681,1e-08,161.29,161.28,31.69197377]
[1762396342108,0.1,161.37,161.35,36.57853453]
[1762396342403,0.1,161.37,161.35,26.78970684]
[1762396342599,0.88,161.36,161.32,6.19874806]
[1762396342915,0.88,161.36,161.32,29.47864584]
[1762396343116,0.68,161.35,161.32,29.47864584]
[1762396343284,0.68,161.35,161.32,6.19874806]
[1762396344198,0.68,161.35,161.31,6.19924369]
[1762396344402,5.54047756,161.33,161.26,9.78882769]
[1762396344600,5.54047756,161.32,161.25,9.78882769]
[1762396344790,5.54047756,161.31,161.25,9.78882769]
[1762396345184,0.68,161.32,161.25,10.45882769]
[1762396345380,0.68,161.32,161.26,5.54047756]
[1762396345785,0.68,161.32,161.27,6.20078129]
[1762396346583,12.41934149,161.32,161.27,6.20078129]
[1762396346813,6.22047756,161.32,161.27,6.20078129]
[1762396347112,20.792,161.36,161.27,12.41125885]
[1762396347277,0.68,161.34,161.29,5.54047756]
[1762396347902,7.24,161.35,161.3,27.23917563]
[1762396348208,12.78047756,161.35,161.3,6.19962802]
[1762396348400,6.22047756,161.34,161.28,6.20017394]
[1762396348577,6.22047756,161.34,161.28,21.701166]
[1762396348891,0.68,161.33,161.28,21.701166]
[1762396349297,6.22047756,161.33,161.28,6.20017394]
[1762396349702,0.68,161.32,161.28,6.20017394]
[1762396350094,0.68,161.32,161.28,11.7406515]
[1762396350620,0.68,161.32,161.26,6.20099438]
[1762396350784,0.68,161.32,161.27,5.54047756]
[1762396350985,0.68,161.32,161.28,5.54047756]
[1762396351906,0.68,161.32,161.29,6.2000124]
[1762396354415,0.2,161.36,161.32,20.592]
[1762396354615,0.2,161.36,161.34,5.54047756]
[1762396355111,0.2,161.36,161.33,5.54047756]
[1762396355412,0.2,161.36,161.34,5.54047756]
[1762396355809,0.68,161.35,161.32,20.592]
[1762396356704,0.68,161.35,161.32,6.19864699]
[1762396356887,5.54047756,161.33,161.28,6.2002895]
[1762396357296,0.68,161.32,161.28,21.70128156]
[1762396358115,7.92,161.34,161.29,6.24047756]
[1762396358318,0.2,161.36,161.32,5.54047756]
[1762396358498,0.2,161.36,161.35,5.54047756]
[1762396358705,0.2,161.36,161.35,11.7381844]
[1762396358907,0.2,161.36,161.35,12.4381844]
[1762396359101,0.2,161.36,161.35,6.89770684]
[1762396359308,0.2,161.36,161.35,6.19770684]
[1762396360216,0.2,161.36,161.35,11.7381844]
[1762396360516,0.2,161.36,161.35,12.4381844]
[1762396360724,0.2,161.36,161.35,6.19770684]
[1762396362299,0.2,161.36,161.35,12.4381844]
[1762396363194,0.2,161.36,161.35,6.19770684]
[1762396363728,0.88,161.36,161.35,6.19770684]
[1762396364704,0.88,161.36,161.32,5.54047756]
[1762396365207,0.88,161.36,161.33,6.19833779]
[1762396365815,0.88,161.36,161.33,11.73881535]
[1762396366019,0.88,161.36,161.33,27.23500328]
[1762396366404,0.2,161.36,161.33,27.23500328]
[1762396366817,0.88,161.36,161.32,11.73922491]
[1762396367011,13.66047756,161.36,161.24,0.31069201]
[1762396367215,6.22047756,161.35,161.28,15.32930525]
[1762396367526,12.41821867,161.35,161.29,6.2000124]
[1762396367701,0.68,161.34,161.29,6.2000124]
[1762396367902,8.12,161.36,161.31,5.54047756]
[1762396368107,7.44,161.36,161.33,5.54047756]
[1762396368505,8.12,161.36,161.32,6.24047756]
[1762396369328,8.12,161.36,161.33,6.19847517]
[1762396369536,7.44,161.36,161.33,21.6946631]
[1762396370231,8.12,161.36,161.33,21.6946631]
[1762396370702,7.44,161.36,161.33,21.6946631]
[1762396371034,7.44,161.36,161.34,0.7]